[Event "Titled Tuesday Blitz April 18 Late 2023"]
[White "Sariego Figueredo, Wilfredo"]
[Black "Oliveira, Tiago Batista"]
[WhiteFideId "3500080"]
[BlackFideId "2108291"]
[WhiteElo "2309"]
[BlackElo "1962"]
[Result "1-0"]
[Round "11"]
[TimeControl "180+2"]
[Date "2023.04.18"]
[WhiteClock "0:00:44"]
[BlackClock "0:00:02"]

1. d4 {[%clk 0:03:00]}  Nf6 {[%clk 0:02:58]} 2. Bf4 {[%clk 0:03:00]}  g6 {[%clk 0:02:53]} 3. Nc3 {[%clk 0:02:58]}  Bg7 {[%clk 0:02:50]} 4. e4 {[%clk 0:02:57]}  d6 {[%clk 0:02:50]} 5. Qd2 {[%clk 0:02:56]}  Nbd7 {[%clk 0:02:46]} 6. O-O-O {[%clk 0:02:54]}  e5 {[%clk 0:02:46]} 7. dxe5 {[%clk 0:02:53]}  dxe5 {[%clk 0:02:46]} 8. Bh6 {[%clk 0:02:51]}  O-O {[%clk 0:02:43]} 9. Nf3 {[%clk 0:02:38]}  Qe7 {[%clk 0:02:31]} 10. Bxg7 {[%clk 0:02:35]}  Kxg7 {[%clk 0:02:31]} 11. Bc4 {[%clk 0:02:28]}  h6 {[%clk 0:02:29]} 12. Rhe1 {[%clk 0:02:21]}  c6 {[%clk 0:02:29]} 13. Bb3 {[%clk 0:02:18]}  Nc5 {[%clk 0:02:26]} 14. h3 {[%clk 0:02:06]}  a5 {[%clk 0:02:20]} 15. Na4 {[%clk 0:01:55]}  Nxb3+ {[%clk 0:02:13]} 16. cxb3 {[%clk 0:01:56]}  b5 {[%clk 0:02:08]} 17. Nc3 {[%clk 0:01:55]}  b4 {[%clk 0:02:02]} 18. Na4 {[%clk 0:01:54]}  Ba6 {[%clk 0:01:52]} 19. Kb1 {[%clk 0:01:45]}  Rfd8 {[%clk 0:01:49]} 20. Qe3 {[%clk 0:01:45]}  Rxd1+ {[%clk 0:01:08]} 21. Rxd1 {[%clk 0:01:46]}  Rd8 {[%clk 0:00:43]} 22. Rd2 {[%clk 0:01:39]}  Rxd2 {[%clk 0:00:33]} 23. Nxd2 {[%clk 0:01:38]}  Qd6 {[%clk 0:00:27]} 24. Nc5 {[%clk 0:01:34]}  Bc8 {[%clk 0:00:22]} 25. f3 {[%clk 0:01:31]}  Nd7 {[%clk 0:00:19]} 26. Nxd7 {[%clk 0:01:30]}  Qxd7 {[%clk 0:00:16]} 27. Kc2 {[%clk 0:01:19]}  Ba6 {[%clk 0:00:16]} 28. Nc4 {[%clk 0:01:18]}  a4 {[%clk 0:00:13]} 29. Nxe5 {[%clk 0:01:13]}  axb3+ {[%clk 0:00:13]} 30. axb3 {[%clk 0:01:14]}  Qe6 {[%clk 0:00:11]} 31. Nc4 {[%clk 0:01:11]}  Bxc4 {[%clk 0:00:09]} 32. Qd4+ {[%clk 0:01:11]}  Qf6 {[%clk 0:00:04]} 33. Qxf6+ {[%clk 0:01:07]}  Kxf6 {[%clk 0:00:04]} 34. bxc4 {[%clk 0:01:08]}  Ke5 {[%clk 0:00:04]} 35. Kd3 {[%clk 0:01:04]}  f5 {[%clk 0:00:03]} 36. Ke3 {[%clk 0:01:00]}  g5 {[%clk 0:00:01]} 37. exf5 {[%clk 0:00:58]}  Kxf5 {[%clk 0:00:02]} 38. g3 {[%clk 0:00:57]}  Ke5 {[%clk 0:00:02]} 39. b3 {[%clk 0:00:49]}  c5 {[%clk 0:00:02]} 40. g4 {[%clk 0:00:47]}  Kd6 {[%clk 0:00:01]} 41. Ke4 {[%clk 0:00:47]}  Ke6 {[%clk 0:00:02]} 42. f4 {[%clk 0:00:46]}  gxf4 {[%clk 0:00:02]} 43. Kxf4 {[%clk 0:00:47]}  Kf6 {[%clk 0:00:02]} 44. h4 {[%clk 0:00:46]}  Kf7 {[%clk 0:00:02]} 45. Ke5 {[%clk 0:00:45]}  Kg6 {[%clk 0:00:02]} 46. Kd5 {[%clk 0:00:44]} 1-0


[Site "https://www.chess.com"]

[Event "Titled Tuesday Blitz April 18 Late 2023"]
[White "Manon-og, Ramon Jr."]
[Black "Dias, Joao Batista"]
[WhiteFideId "5200776"]
[BlackFideId "2108240"]
[WhiteElo "2344"]
[BlackElo "1907"]
[Result "0-1"]
[Round "11"]
[TimeControl "180+2"]
[Date "2023.04.18"]
[WhiteClock "0:00:19"]
[BlackClock "0:01:40"]

1. d4 {[%clk 0:02:58]}  d5 {[%clk 0:02:59]} 2. Bf4 {[%clk 0:02:58]}  e6 {[%clk 0:02:59]} 3. Nf3 {[%clk 0:02:56]}  Bd6 {[%clk 0:02:59]} 4. Bg3 {[%clk 0:02:53]}  Ne7 {[%clk 0:02:59]} 5. Nc3 {[%clk 0:02:53]}  Nf5 {[%clk 0:02:59]} 6. Bxd6 {[%clk 0:02:48]}  Nxd6 {[%clk 0:03:00]} 7. e3 {[%clk 0:02:47]}  O-O {[%clk 0:02:59]} 8. Bd3 {[%clk 0:02:44]}  a6 {[%clk 0:03:00]} 9. Ne5 {[%clk 0:02:42]}  b6 {[%clk 0:02:59]} 10. Qh5 {[%clk 0:02:39]}  g6 {[%clk 0:02:58]} 11. Qh3 {[%clk 0:02:36]}  Nd7 {[%clk 0:02:55]} 12. O-O {[%clk 0:02:33]}  Nxe5 {[%clk 0:02:55]} 13. dxe5 {[%clk 0:02:33]}  Nf5 {[%clk 0:02:55]} 14. e4 {[%clk 0:02:28]}  Ng7 {[%clk 0:02:47]} 15. f4 {[%clk 0:02:19]}  Bb7 {[%clk 0:02:45]} 16. f5 {[%clk 0:01:57]}  dxe4 {[%clk 0:02:44]} 17. Be2 {[%clk 0:01:54]}  exf5 {[%clk 0:02:44]} 18. Rf4 {[%clk 0:01:47]}  Qe7 {[%clk 0:02:41]} 19. Rh4 {[%clk 0:01:46]}  h5 {[%clk 0:02:40]} 20. g4 {[%clk 0:01:41]}  Qc5+ {[%clk 0:02:30]} 21. Kg2 {[%clk 0:01:32]}  e3+ {[%clk 0:02:29]} 22. Kf1 {[%clk 0:01:30]}  Qc6 {[%clk 0:02:25]} 23. Bf3 {[%clk 0:01:24]}  Qxf3+ {[%clk 0:02:24]} 24. Qxf3 {[%clk 0:01:21]}  Bxf3 {[%clk 0:02:23]} 25. gxh5 {[%clk 0:01:19]}  Bxh5 {[%clk 0:02:22]} 26. Nd5 {[%clk 0:01:11]}  Ne8 {[%clk 0:02:16]} 27. Ne7+ {[%clk 0:01:10]}  Kg7 {[%clk 0:02:15]} 28. Kg2 {[%clk 0:01:07]}  f6 {[%clk 0:02:07]} 29. exf6+ {[%clk 0:01:06]}  Nxf6 {[%clk 0:02:07]} 30. Rg1 {[%clk 0:01:00]}  Kf7 {[%clk 0:02:01]} 31. Nc6 {[%clk 0:00:56]}  Rae8 {[%clk 0:02:00]} 32. Kh3 {[%clk 0:00:48]}  e2 {[%clk 0:02:00]} 33. Re1 {[%clk 0:00:47]}  Re3+ {[%clk 0:01:55]} 34. Kg2 {[%clk 0:00:45]}  Rfe8 {[%clk 0:01:55]} 35. Rd4 {[%clk 0:00:36]}  R8e4 {[%clk 0:01:51]} 36. Rxe4 {[%clk 0:00:29]}  Nxe4 {[%clk 0:01:51]} 37. Ne5+ {[%clk 0:00:27]}  Ke6 {[%clk 0:01:49]} 38. Nc6 {[%clk 0:00:21]}  Bf3+ {[%clk 0:01:41]} 39. Kh3 {[%clk 0:00:19]}  Bg4+ {[%clk 0:01:41]} 40. Kh4 {[%clk 0:00:19]}  Rh3# {[%clk 0:01:40]} 0-1


[Site "https://www.chess.com"]